bitfinex-derivatives/quotes_SOLF0:USTF0_20251101
["timestamp","ask_amount","ask_price","bid_price","bid_amount"]
[1761968132205,9.05927129,187.11,187.1,2.75]
[1761968132404,4.63273856,187.11,187.1,2.75]
[1761968132903,9.05790281,187.11,187.1,2.75]
[1761968133106,9.05790281,187.11,187.1,4.55933338]
[1761968134109,4.63273856,187.11,187.1,4.55933338]
[1761968134311,2.86,187.14,187.11,2.75]
[1761968134605,9.05033902,187.13,187.11,2.75]
[1761968134802,9.05033902,187.12,187.11,2.75]
[1761968136906,11.91033902,187.12,187.08,2.75]
[1761968137107,2.86,187.12,187.09,2.75]
[1761968138318,2.86,187.18,187.1,1.80933338]
[1761968138517,9.04534382,187.17,187.16,1.80933338]
[1761968138720,11.90534382,187.17,187.16,1.80933338]
[1761968139716,11.90534382,187.17,187.14,1.80933338]
[1761968139916,9.04534382,187.16,187.14,1.80933338]
[1761968140118,9.04534382,187.15,187.14,1.80933338]
[1761968140509,11.90534382,187.15,187.14,1.80933338]
[1761968141508,9.04534382,187.15,187.14,1.80933338]
[1761968142717,4.62508808,187.15,187.14,4.55933338]
[1761968144121,2.86,187.18,187.15,2.75]
[1761968144416,4.42085665,187.17,187.15,2.75]
[1761968144619,2.86,187.18,187.15,2.75]
[1761968144822,7.2971029,187.17,187.15,2.75]
[1761968145016,4.43770566,187.16,187.15,2.75]
[1761968145417,4.43770566,187.16,187.15,4.55933338]
[1761968146220,2.86,187.2,187.15,4.55933338]
[1761968146424,7.30758579,187.19,187.18,1.80933338]
[1761968146921,7.30758579,187.19,187.15,2.75]
[1761968147125,7.30758579,187.18,187.15,2.75]
[1761968147324,4.43758579,187.17,187.15,2.75]
[1761968147522,4.43758579,187.16,187.15,2.75]
[1761968148130,4.43758579,187.16,187.15,4.55933338]
[1761968149114,7.30758579,187.16,187.15,1.80933338]
[1761968150414,4.43758579,187.16,187.15,4.53933338]
[1761968151023,7.30758579,187.16,187.15,1.80933338]
[1761968154229,4.43758579,187.16,187.15,1.80933338]
[1761968155127,7.30758579,187.16,187.15,1.80933338]
[1761968156121,11.88237688,187.16,187.15,1.80933338]
[1761968157232,9.01237688,187.16,187.15,4.53933338]
[1761968157728,11.88237688,187.16,187.15,1.80933338]
[1761968161932,9.01237688,187.16,187.15,4.53933338]
[1761968163231,2.87,187.27,187.16,2.73]
[1761968163529,2.87,187.27,187.2,1.80933338]
[1761968164430,2.87,187.27,187.22,1.80933338]
[1761968165230,2.87,187.27,187.22,4.53933338]
[1761968165430,2.87,187.27,187.24,1.80933338]
[1761968166535,2.87,187.27,187.22,4.53933338]
[1761968169337,2.87,187.27,187.22,2.73]
[1761968173334,2.87,187.27,187.19,10.50562324]
[1761968173538,2.87,187.27,187.19,7.68016877]
[1761968174940,2.87,187.27,187.2,2.73]
[1761968175142,2.87,187.25,187.21,2.73]
[1761968176238,11.74034191,187.24,187.21,2.73]
[1761968176433,4.47131521,187.23,187.21,2.73]
[1761968176635,8.85051762,187.22,187.21,2.73]
[1761968176928,2.89,187.24,187.21,2.73]
[1761968177142,8.85069703,187.23,187.21,2.73]
[1761968177334,8.85069703,187.22,187.21,2.73]
[1761968191559,4.11132291,187.22,187.21,2.73]
[1761968194458,4.11132291,187.22,187.21,7.68016877]
[1761968197159,4.11132291,187.22,187.21,2.73]
[1761968199460,4.11132291,187.22,187.21,6.82754073]
[1761968200264,4.11132291,187.22,187.21,13.43641123]
[1761968202272,4.11132291,187.22,187.21,6.82754073]
[1761968202565,4.11132291,187.22,187.21,13.43298098]
[1761968203463,8.49760607,187.22,187.21,13.43298098]
[1761968204269,8.49760607,187.22,187.21,6.82754073]
[1761968209876,2.76,187.24,187.21,16.55595599]
[1761968210066,11.64721604,187.23,187.22,4.09754073]
[1761968210266,11.64721604,187.23,187.22,6.83754073]
[1761968211277,11.64721604,187.23,187.22,13.45569486]
[1761968211472,11.64721604,187.23,187.22,6.83754073]
[1761968212375,11.64721604,187.23,187.22,4.09754073]
[1761968212570,11.64721604,187.23,187.22,10.7152718]
[1761968213180,11.64721604,187.23,187.22,4.09754073]
[1761968214080,11.64721604,187.23,187.22,10.71511863]
[1761968215280,8.88721604,187.23,187.22,13.45511863]
[1761968215780,11.64721604,187.23,187.22,13.45511863]
[1761968217584,11.64721604,187.23,187.22,10.71511863]
[1761968219980,8.88721604,187.23,187.22,13.45511863]
[1761968220488,4.49340741,187.23,187.22,13.45511863]
[1761968221287,4.49340741,187.23,187.22,6.83754073]
[1761968221487,4.49340741,187.23,187.22,13.45558007]
[1761968221688,2.76,187.28,187.23,2.74]
[1761968221891,2.76,187.28,187.27,4.96220504]
[1761968222183,11.50245231,187.28,187.27,9.05974577]
[1761968230995,12.56245231,187.28,187.27,4.09754073]
[1761968231199,12.56245231,187.28,187.23,4.91844357]
[1761968231200,2.76,187.27,187.23,4.91844357]
[1761968231383,2.76,187.24,187.19,6.61627338]
[1761968231584,2.76,187.2,187.17,6.61627338]
[1761968231800,2.76,187.18,187.17,6.61627338]
[1761968231998,11.50245231,187.18,187.17,6.61627338]
[1761968234200,2.76,187.17,187.16,6.61627338]
[1761968234500,11.50245231,187.17,187.14,2.74]
[1761968234685,8.74245231,187.16,187.14,2.74]
[1761968234885,8.74245231,187.15,187.14,2.74]
[1761968237300,4.30519606,187.15,187.14,9.35627338]
[1761968237496,2.72,187.23,187.15,2.65]
[1761968237707,11.78640135,187.22,187.16,2.65]
[1761968237896,11.78640135,187.21,187.16,2.65]
[1761968238097,9.06640135,187.2,187.16,2.65]
[1761968238301,9.06640135,187.19,187.16,2.65]
[1761968238498,4.73763954,187.18,187.16,2.65]
[1761968238699,4.73763954,187.17,187.16,2.65]
[1761968239096,4.73763954,187.17,187.16,9.25702931]
[1761968239296,4.73763954,187.17,187.14,1.80823814]
[1761968239297,7.62763954,187.17,187.14,6.60702931]
[1761968239498,4.73763954,187.16,187.14,9.48702931]
[1761968239710,2.89,187.17,187.14,9.48702931]
[1761968240004,4.73696409,187.16,187.14,9.48702931]
[1761968240205,2.89,187.17,187.14,9.48702931]
[1761968240410,4.73626292,187.16,187.15,2.88]
[1761968241803,2.89,187.15,187.13,9.48702931]
[1761968242404,2.89,187.15,187.13,2.88]
[1761968243204,2.89,187.19,187.13,2.88]
[1761968243405,2.89,187.17,187.13,2.88]
[1761968243613,4.7338167,187.16,187.13,2.88]
[1761968243812,4.7338167,187.15,187.13,2.88]
[1761968244108,2.89,187.16,187.13,2.88]
[1761968244306,4.73319488,187.15,187.13,2.88]
[1761968244504,2.89,187.16,187.13,2.88]
[1761968244702,4.73296453,187.15,187.13,2.88]
[1761968244904,2.89,187.16,187.13,2.88]
[1761968245106,4.73296453,187.15,187.13,2.88]
[1761968245306,2.89,187.16,187.13,2.88]
[1761968245499,4.73219468,187.15,187.13,2.88]
[1761968245700,2.89,187.16,187.13,2.88]
[1761968245908,4.73219468,187.15,187.13,2.88]
[1761968246112,2.89,187.16,187.13,2.88]
[1761968246411,1.80823814,187.2,187.13,2.88]
[1761968246412,2.89,187.19,187.14,2.88]
[1761968246593,11.94489836,187.18,187.14,2.88]
[1761968246795,4.73143105,187.17,187.14,2.88]
[1761968246998,7.62143105,187.16,187.13,11.29526745]
[1761968247203,2.89,187.14,187.12,3.80953683]
[1761968247397,2.89,187.14,187.12,0.92953683]
[1761968248109,2.89,187.14,187.12,3.80953683]
[1761968248310,2.89,187.2,187.12,3.80953683]
[1761968248513,2.89,187.18,187.12,3.80953683]
[1761968248705,2.89,187.16,187.12,3.80953683]
[1761968248906,7.62025435,187.15,187.12,3.80953683]
[1761968249213,2.89,187.15,187.12,3.80953683]
[1761968249511,2.89,187.15,187.13,2.88]
[1761968249703,2.89,187.2,187.13,2.88]
[1761968249904,2.89,187.18,187.13,2.88]
[1761968250104,2.89,187.16,187.13,2.88]
[1761968250309,4.72963824,187.15,187.13,2.88]
[1761968250612,2.89,187.16,187.13,2.88]
[1761968250805,4.7290934,187.15,187.13,2.88]
[1761968251006,2.89,187.16,187.13,2.88]
[1761968251206,4.7290934,187.15,187.13,2.88]
[1761968251407,2.89,187.16,187.13,2.88]
[1761968251610,4.72860846,187.15,187.13,2.88]
[1761968251910,2.89,187.16,187.13,2.88]
[1761968252105,4.72860834,187.15,187.13,2.88]
[1761968252304,2.89,187.19,187.13,2.88]
[1761968252606,2.89,187.17,187.13,2.88]
[1761968252907,4.72818165,187.16,187.13,2.88]
[1761968253105,2.89,187.17,187.13,2.88]
[1761968253310,2.89,187.15,187.12,0.92953683]
[1761968253709,2.89,187.15,187.12,3.80953683]
[1761968254609,2.89,187.15,187.13,2.88]
[1761968254809,2.89,187.18,187.13,2.88]
[1761968255116,4.7275278,187.17,187.13,2.88]
[1761968255413,6.66595321,187.33,187.14,2.88]
[1761968255414,4.7275278,187.16,187.14,2.88]
[1761968255613,2.89,187.19,187.14,2.88]
[1761968255815,11.93718426,187.18,187.14,2.88]
[1761968256014,4.72738311,187.17,187.14,2.88]
[1761968256213,4.72738311,187.16,187.15,1.80823814]
[1761968256414,4.72738311,187.16,187.15,4.68823814]
[1761968257006,2.89,187.21,187.15,4.68823814]
[1761968257300,2.89,187.19,187.16,2.88]
[1761968257505,4.72722752,187.18,187.16,2.88]
[1761968257705,4.72722752,187.17,187.16,2.88]
[1761968257908,2.89,187.22,187.16,2.88]
[1761968258109,11.93584745,187.21,187.16,2.88]
[1761968258305,9.04584745,187.2,187.16,2.88]
[1761968258516,4.7269469,187.19,187.16,2.88]
[1761968258705,4.7269469,187.18,187.16,2.88]
[1761968258906,2.89,187.2,187.17,1.80823814]
[1761968259106,4.72716783,187.19,187.17,4.68823814]
[1761968259306,4.72716783,187.18,187.17,4.68823814]
[1761968261410,4.72716783,187.18,187.17,1.80823814]
[1761968261609,4.72716783,187.18,187.17,4.68823814]
[1761968263519,2.89,187.17,187.15,1.80823814]
[1761968263717,7.61716783,187.16,187.15,1.80823814]
[1761968264814,2.89,187.15,187.13,1.80823814]
[1761968265217,2.89,187.15,187.13,4.68823814]
[1761968266321,2.89,187.15,187.13,1.80823814]
[1761968266523,7.80186749,187.14,187.12,0.92953683]
[1761968266820,2.91,187.14,187.13,1.80823814]
[1761968267025,7.80203535,187.14,187.13,1.80823814]
[1761968268922,4.89203535,187.14,187.13,1.80823814]
[1761968269624,7.80203535,187.14,187.13,1.80823814]
[1761968269917,2.91,187.14,187.13,1.80823814]
[1761968270121,7.80486658,187.14,187.13,1.80823814]
[1761968270716,4.89486658,187.14,187.13,4.60823814]
[1761968273226,4.89486658,187.14,187.13,1.80823814]
[1761968273820,7.80486658,187.14,187.13,1.80823814]
[1761968275128,12.18721972,187.14,187.13,1.80823814]
[1761968276130,12.18721972,187.14,187.13,8.41526745]
[1761968280234,9.27721972,187.14,187.13,8.41526745]
[1761968280434,9.27721972,187.14,187.13,11.21526745]
[1761968284035,9.27721972,187.14,187.13,4.60823814]
[1761968288931,12.18721972,187.14,187.13,1.80823814]
[1761968289135,12.18721972,187.14,187.12,5.74163683]
[1761968289440,4.89486658,187.13,187.12,5.74163683]
[1761968289636,4.89486658,187.13,187.12,15.47005209]
[1761968291945,4.89486658,187.13,187.12,18.27005209]
[1761968293445,4.89486658,187.13,187.12,13.45795209]
[1761968293935,9.28340062,187.13,187.12,3.72953683]
[1761968297153,9.28340062,187.13,187.12,10.35427489]
[1761968298159,12.18340062,187.13,187.12,7.55427489]
[1761968298649,12.18340062,187.13,187.11,6.62473806]
[1761968298952,19.4,187.28,187.11,2.92]
[1761968298953,9.28340062,187.12,187.11,2.92]
[1761968299344,11.99340062,187.12,187.11,0.9300461]
[1761968314456,2.71,187.11,187.08,4.96902059]
[1761968314765,2.71,187.09,187.06,4.96902059]
[1761968314964,2.71,187.07,187.06,4.96902059]
[1761968315162,9.28340062,187.07,187.05,4.96902059]
[1761968315367,18.38828293,187.17,187.04,5.89935262]
[1761968315368,2.71,187.05,187.04,5.89935262]
[1761968315564,11.99340062,187.05,187.04,5.89935262]
[1761968317464,9.28340062,187.05,187.04,8.66935262]
[1761968317663,4.89486658,187.05,187.04,3.70033203]
[1761968319171,2.71,187.08,187.05,2.77]
[1761968319374,9.31309955,187.07,187.05,7.72903879]
[1761968319670,4.89038953,187.06,187.05,2.77]
[1761968321668,9.31159152,187.06,187.05,2.77]
[1761968322170,4.89038953,187.06,187.05,2.77]
[1761968325072,7.60038953,187.06,187.03,9.77343879]
[1761968325276,4.89038953,187.05,187.03,12.54343879]
[1761968325572,2.71,187.06,187.03,12.54343879]
[1761968325774,4.88507241,187.05,187.03,12.54343879]
[1761968326074,2.71,187.06,187.03,12.54343879]
[1761968326270,4.88507241,187.05,187.03,12.54343879]
[1761968326468,2.71,187.06,187.04,2.92]
[1761968326669,4.88460637,187.05,187.04,2.92]
[1761968328272,4.88460637,187.05,187.04,7.87903879]
[1761968329773,7.57460637,187.05,187.04,4.95903879]
[1761968330474,4.88460637,187.05,187.04,4.95903879]
[1761968330678,4.88460637,187.05,187.04,7.87903879]
[1761968337781,7.57460637,187.05,187.04,4.95903879]
[1761968338177,7.57759297,187.05,187.04,4.95903879]
[1761968341885,7.57759297,187.05,187.04,5.88947032]
[1761968343687,7.58120076,187.05,187.04,5.88947032]
[1761968345077,7.58120076,187.05,187.04,0.93043153]
[1761968345586,11.89900729,187.05,187.04,0.93043153]
[1761968345880,2.69,187.04,187.03,4.95984176]
[1761968346081,7.58120076,187.04,187.03,4.95984176]
[1761968349688,2.69,187.03,187.02,5.89036036]
[1761968349888,7.58120076,187.03,187.02,5.89036036]
[1761968351283,11.90116016,187.03,187.02,5.89036036]
[1761968351593,11.90116016,187.03,187.02,0.9305186]
[1761968352685,11.90116016,187.03,187.01,4.95984176]
[1761968352892,7.58120076,187.02,187.01,4.95984176]
[1761968354191,2.69,187.01,186.99,92.70884331]
[1761968354390,4.89120076,187.0,186.99,95.62884331]
[1761968354587,4.89120076,187.0,186.99,89.00262984]
[1761968359098,7.55120076,187.0,186.99,92.71338748]
[1761968359299,7.55120076,187.0,186.99,86.08262984]
[1761968359490,7.55120076,187.0,186.99,92.71581027]
[1761968359689,7.55120076,187.0,186.99,17.25581027]
[1761968361997,11.87873028,187.0,186.99,10.62262984]
[1761968362394,11.87873028,187.0,186.99,9.69198681]
[1761968369600,2.66,186.99,186.93,6.63318043]
[1761968369899,2.66,186.97,186.94,2.66]
[1761968370089,7.55120076,186.96,186.94,2.66]
[1761968370291,4.89120076,186.95,186.94,2.66]
[1761968370488,7.55120076,186.95,186.93,2.66]
[1761968370698,2.66,186.95,186.93,2.66]
[1761968371095,2.66,187.01,186.93,2.66]
[1761968371295,1.81258248,187.02,186.93,2.66]
[1761968371296,2.66,186.99,186.93,2.66]
[1761968371600,9.20671849,186.98,186.94,2.66]
[1761968371800,4.88731906,186.97,186.94,2.66]
[1761968372101,4.88731906,186.96,186.94,2.66]
[1761968372400,4.88731906,186.95,186.94,2.66]
[1761968375804,7.54731906,186.95,186.93,7.477]
[1761968376004,2.66,186.95,186.93,7.477]
[1761968376604,2.66,186.95,186.93,2.66]
[1761968377202,2.66,186.95,186.92,0.93087952]
[1761968377401,2.66,186.95,186.92,3.59087952]
[1761968377901,7.54471165,186.94,186.92,3.59087952]
[1761968378105,2.66,186.94,186.92,3.59087952]
[1761968379604,2.66,186.98,186.92,3.59087952]
[1761968379802,2.66,186.96,186.92,0.93087952]
[1761968380004,2.66,186.94,186.92,0.93087952]
[1761968386300,7.58372805,186.93,186.92,0.93087952]
[1761968389411,4.88372805,186.93,186.92,3.61087952]
[1761968390510,4.88372805,186.93,186.92,0.93087952]
[1761968391012,4.88372805,186.93,186.92,3.61087952]
[1761968402527,7.58372805,186.93,186.92,0.93087952]
[1761968407128,4.88372805,186.93,186.92,3.61087952]
[1761968408434,2.7,186.97,186.93,7.497]
[1761968408634,2.7,186.95,186.93,7.497]
[1761968408936,4.30997656,186.94,186.93,7.497]
[1761968411228,4.30997656,186.94,186.93,14.13018043]
[1761968413036,7.00997656,186.94,186.93,11.45018043]
[1761968414038,4.30997656,186.94,186.93,14.13018043]
[1761968418839,4.30997656,186.94,186.93,9.31318043]
[1761968419039,4.30997656,186.94,186.93,2.68]
[1761968419440,4.30997656,186.94,186.93,9.3439772]
[1761968419640,4.30997656,186.94,186.93,2.68]
[1761968420330,9.11065768,186.94,186.93,9.3439772]
[1761968421646,11.81065768,186.94,186.93,6.6639772]
[1761968425736,9.11065768,186.94,186.93,9.5039772]
[1761968426541,2.7,186.99,186.93,9.5039772]
[1761968426753,9.49047818,186.98,186.95,2.84]
[1761968427040,2.7,186.99,186.95,9.5039772]
[1761968427237,2.7,186.99,186.95,6.6639772]
[1761968427434,2.7,186.99,186.94,9.5039772]
[1761968429045,2.7,186.99,186.94,14.3206772]
[1761968429242,2.7,186.99,186.95,6.6639772]
[1761968429639,2.7,186.99,186.97,4.99838251]
[1761968431254,2.7,186.99,186.98,4.99838251]
[1761968433853,2.7,186.99,186.97,4.99838251]
[1761968435951,2.7,186.99,186.96,7.83838251]
[1761968438454,2.7,186.99,186.96,4.99838251]
[1761968438752,2.7,186.97,186.96,4.99838251]
[1761968438952,2.7,186.96,186.94,4.99838251]
[1761968439152,11.73082818,186.95,186.94,4.99838251]
[1761968439554,2.7,186.94,186.93,6.6639772]
[1761968439753,11.73082818,186.94,186.93,6.6639772]
[1761968440958,9.03082818,186.94,186.93,9.5039772]
[1761968441151,9.03082818,186.94,186.93,2.84]
[1761968446166,9.03082818,186.94,186.93,9.4986491]
[1761968448066,9.03082818,186.94,186.93,2.84]
[1761968448564,9.03082818,186.94,186.93,12.56841526]
[1761968449355,2.93,187.03,186.96,2.92]
[1761968449560,2.93,187.03,187.0,4.99070388]
[1761968449759,2.93,187.03,187.01,4.13143895]
[1761968449955,2.93,187.03,187.02,4.13143895]
[1761968450360,2.93,187.03,186.99,4.99070388]
[1761968453266,2.93,187.03,186.99,7.91070388]
[1761968455263,2.83485691,187.08,187.02,2.92]
[1761968455468,2.93,187.07,187.02,2.92]
[1761968458261,2.93,187.07,187.03,2.92]
[1761968459974,2.93,187.07,187.03,7.91070388]
[1761968460175,2.93,187.07,187.03,2.92]
[1761968461070,2.93,187.07,187.02,4.99070388]
[1761968461372,2.93,187.05,187.02,4.99070388]
[1761968461562,2.93,187.05,187.0,9.57427184]
[1761968461563,2.93,187.03,187.0,7.91070388]
[1761968461761,11.58329717,187.02,187.0,7.91070388]
[1761968461959,8.65329717,187.01,187.0,7.91070388]
[1761968463474,11.58329717,187.01,187.0,4.99070388]
[1761968463680,2.93,187.0,186.99,14.68269069]
[1761968463875,11.58361802,187.0,186.99,14.68269069]
[1761968465776,8.65361802,187.0,186.99,17.60269069]
[1761968466078,8.65361802,187.0,186.99,12.61198681]
[1761968466576,8.65237129,187.0,186.99,12.61198681]
[1761968468782,8.65237129,187.0,186.99,17.59181496]
[1761968469077,2.93,187.09,187.03,2.92]
[1761968469375,4.41302947,187.08,187.06,2.92]
[1761968469678,2.93,187.14,187.08,2.92]
[1761968469872,2.93,187.12,187.09,7.02619615]
[1761968470072,4.41220051,187.11,187.1,4.10619615]
[1761968470272,7.34220051,187.11,187.1,4.10619615]
[1761968471965,11.23705742,187.11,187.1,3.45357521]
[1761968472171,2.93,187.1,187.03,4.97030357]
[1761968472371,2.93,187.08,187.03,4.97030357]
[1761968472671,4.41220051,187.07,187.06,2.92]
[1761968473074,2.93,187.13,187.08,2.92]
[1761968473273,7.30110344,187.12,187.08,2.92]
[1761968473474,4.37110344,187.11,187.08,2.92]
[1761968473669,2.93,187.12,187.08,2.92]
[1761968473875,4.37077056,187.11,187.08,2.92]
[1761968474080,2.93,187.15,187.09,2.92]
[1761968474275,2.83485691,187.17,187.09,2.92]
[1761968474276,7.29795626,187.14,187.09,2.92]
[1761968474480,4.36795626,187.13,187.09,2.92]
[1761968475070,4.36795626,187.13,187.1,2.92]
[1761968475284,1.81077842,187.16,187.1,2.92]
[1761968475482,7.29513589,187.15,187.1,2.92]
[1761968475678,4.36513589,187.14,187.1,2.92]
[1761968476276,7.08513589,187.14,187.1,2.92]
[1761968476476,4.36288558,187.13,187.1,2.92]
[1761968476678,2.72,187.14,187.1,2.92]
[1761968480378,75.56,187.24,187.1,2.92]
[1761968480582,2.83,187.2,187.12,2.73]
[1761968480989,2.83,187.2,187.14,2.73]
[1761968484188,2.83,187.2,187.16,2.73]
[1761968486197,2.83,187.2,187.13,7.5419]
[1761968486491,1.81077842,187.2,187.12,2.73]
[1761968486692,1.81077842,187.2,187.14,2.73]
[1761968486693,4.64077842,187.2,187.14,2.73]
[1761968489593,1.81077842,187.2,187.14,2.73]
[1761968489798,20.15025145,187.31,187.1,4.97030357]
[1761968489799,2.83,187.16,187.11,2.73]
[1761968489997,2.83,187.16,187.12,4.05564534]
[1761968490197,2.83,187.16,187.11,2.73]
[1761968490500,2.83,187.16,187.12,6.78679094]
[1761968490703,2.83,187.16,187.12,2.73]
[1761968490904,2.83,187.16,187.1,4.8127]
[1761968491106,2.83,187.16,187.11,6.78717018]
[1761968491298,2.83,187.16,187.11,2.73]
[1761968493195,2.83,187.16,187.12,4.06038337]
[1761968493401,2.83,187.16,187.11,2.73]
[1761968493600,2.83,187.16,187.12,6.79058537]
[1761968493798,2.83,187.16,187.12,2.73]
[1761968494501,4.64077842,187.19,187.14,2.73]
[1761968495207,2.83,187.23,187.16,2.73]
[1761968495503,11.41430538,187.22,187.18,2.73]
[1761968495706,4.34743581,187.21,187.18,2.73]
[1761968495910,2.83,187.25,187.19,4.05756981]
[1761968496111,11.41231809,187.24,187.19,2.73]
[1761968496412,2.83,187.24,187.19,2.73]
[1761968497201,2.83,187.24,187.21,2.73]
[1761968498199,4.34681439,187.23,187.21,2.73]
[1761968498404,7.17681439,187.23,187.21,2.73]
[1761968498603,2.83,187.23,187.21,2.73]
[1761968499415,2.83,187.29,187.21,2.73]
[1761968499609,8.58117938,187.28,187.22,6.78506297]
[1761968499917,4.34620805,187.27,187.24,2.73]
[1761968501712,7.17620805,187.27,187.24,2.73]
[1761968501914,2.83,187.27,187.24,2.73]
[1761968502217,2.83,187.31,187.24,2.73]
[1761968502416,2.83,187.29,187.24,2.73]
[1761968502617,11.40340269,187.28,187.24,2.73]
[1761968502818,4.34176085,187.27,187.24,2.73]
[1761968503313,2.83,187.35,187.26,2.73]
[1761968503518,2.83,187.33,187.27,6.78968508]
[1761968503719,2.83,187.36,187.29,2.73]
[1761968504022,2.83,187.38,187.31,2.73]
[1761968504206,8.5683016,187.37,187.33,2.73]
[1761968504522,2.83,187.36,187.33,2.73]
[1761968504711,1.81077842,187.42,187.33,2.73]
[1761968504712,2.83,187.42,187.33,2.73]
[1761968504910,11.45509185,187.41,187.34,2.73]
[1761968505212,8.62509185,187.4,187.34,2.73]
[1761968505510,11.45509185,187.39,187.34,2.73]
[1761968505716,2.83,187.39,187.34,2.73]
[1761968509116,4.56077842,187.43,187.34,2.73]
[1761968509321,8.59912333,187.42,187.35,2.65]
[1761968509519,2.75,187.43,187.35,2.65]
[1761968509718,2.75,187.43,187.36,2.65]
[1761968510121,1.81077842,187.42,187.36,2.65]
[1761968511217,57.62,187.54,187.36,2.65]
[1761968511218,4.56077842,187.39,187.36,2.65]
[1761968511423,2.75,187.38,187.34,2.65]
[1761968512929,4.56077842,187.36,187.32,2.65]
[1761968513227,2.75,187.35,187.29,2.65]
[1761968513418,2.75,187.35,187.26,81.67030357]
[1761968513419,4.56077842,187.35,187.31,2.65]
[1761968514628,2.75,187.34,187.31,2.65]
[1761968515923,4.56077842,187.36,187.31,2.65]
[1761968516227,2.75,187.35,187.31,2.65]
[1761968516625,2.75,187.35,187.29,4.04323815]
[1761968517125,2.75,187.35,187.3,6.69323815]
[1761968517427,2.75,187.35,187.27,2.65]
[1761968517627,2.75,187.35,187.28,6.69473313]
[1761968517827,2.75,187.35,187.29,4.04473313]
[1761968518024,2.75,187.35,187.3,4.04473313]
[1761968518226,2.75,187.35,187.28,2.65]
[1761968518427,2.75,187.35,187.29,4.0454844]
[1761968518627,2.75,187.35,187.3,4.0454844]
[1761968518829,2.75,187.35,187.28,2.65]
[1761968519026,2.75,187.35,187.29,4.04534526]
[1761968519226,2.75,187.35,187.3,4.04534526]
[1761968519426,2.75,187.35,187.28,2.65]
[1761968519624,2.75,187.35,187.29,4.04569725]
[1761968519823,2.75,187.35,187.3,4.04569725]
[1761968520025,2.75,187.35,187.28,2.65]
[1761968520326,2.75,187.35,187.29,4.04569725]
[1761968520523,2.75,187.35,187.3,6.69569725]
[1761968520723,2.75,187.35,187.3,2.65]
[1761968520925,2.75,187.35,187.27,7.4581]
[1761968521125,2.75,187.35,187.28,6.69645716]
[1761968521333,2.75,187.35,187.29,4.04645716]
[1761968521522,2.75,187.35,187.3,4.04645716]
[1761968521726,2.75,187.35,187.28,2.65]
[1761968521925,2.75,187.35,187.29,4.04711295]
[1761968522131,2.75,187.33,187.25,7.62030357]
[1761968522330,2.75,187.32,187.26,4.04804413]
[1761968522527,2.75,187.29,187.27,4.04804413]
[1761968522727,2.75,187.29,187.22,2.65]
[1761968522728,2.75,187.29,187.24,4.04804413]
[1761968522932,2.75,187.29,187.25,4.04804413]
[1761968523123,2.75,187.29,187.26,4.05116736]
[1761968523325,2.75,187.29,187.23,4.05163076]
[1761968523525,2.75,187.29,187.24,6.70163076]
[1761968523832,2.75,187.29,187.26,2.65]
[1761968524025,2.75,187.32,187.26,2.65]
[1761968524225,2.75,187.3,187.27,4.05134773]
[1761968524424,2.75,187.3,187.23,2.65]
[1761968524731,2.75,187.43,187.3,2.65]
[1761968524935,8.61359569,187.42,187.34,2.65]
[1761968525137,2.75,187.43,187.36,2.65]
[1761968525431,4.56077842,187.47,187.38,2.65]
[1761968525629,11.36013587,187.46,187.39,4.05223575]
[1761968525834,2.75,187.44,187.4,4.04453216]
[1761968526026,2.75,187.44,187.38,2.65]
[1761968526227,2.75,187.44,187.39,4.04301582]
[1761968526432,2.75,187.44,187.38,2.65]
[1761968526628,2.75,187.44,187.39,4.04305742]
[1761968526833,2.75,187.44,187.38,2.65]